[Event "EYCC 2017"]
[Site "Mamaia"]
[Date "2017.09.05"]
[Round "1"]
[White "Otetea, Ioana"]
[Black "Mironenko, Galina"]
[Result "1/2-1/2"]
[ECO "C41"]
[WhiteElo "1568"]
[BlackElo "2006"]
[Annotator "NA RC"]
[PlyCount "122"]
[EventDate "2017.??.??"]
[EventType "swiss"]
[EventCountry "ROU"]
[SourceTitle "playchess.com"]
[Source "ChessBase"]
[SourceQuality "1"]
[TimeControl "40/5400+30:1800+30"]

1. e4 {[%emt 0:00:00]} d6 {[%emt 0:00:07]} 2. d4 {[%emt 0:00:00]} Nf6 {[%emt 0:00:05]} 3. Nc3 {[%emt 0:00:00]} e5 {[%emt 0:00:04]} 4. Nf3 {[%emt 0:01:47]} Nbd7 {[%emt 0:00:27]} 5. h3 {[%emt 0:00:54]} Be7 {[%emt 0:00:42]} 6. Be3 {[%emt 0:01:29]} c6 {[%emt 0:00:42]} 7. a4 {[%emt 0:00:59]} O-O {[%emt 0:03:55]} 8. Be2 {[%emt 0:02:59]} Qc7 {[%emt 0:05:54]} 9. O-O {[%emt 0:03:03]} Re8 {[%emt 0:05:17]} 10. Nd2 {[%emt 0:02:40]} Bf8 {[%emt 0:01:18]} 11. dxe5 {[%emt 0:01:19]} dxe5 {[%emt 0:01:59]} 12. Nc4 {[%emt 0:01:23]} Nc5 {[%emt 0:04:19]} 13. Bd3 {[%emt 0:06:12]} Be6 {[%emt 0:04:34]} 14. f4 {[%emt 0:08:21]} Nxd3 {[%emt 0:16:31]} 15. Qxd3 {[%emt 0:11:51]} Rad8 {[%emt 0:06:44]} 16. Qe2 {[%emt 0:01:43]} Bxc4 {[%emt 0:02:49]} 17. Qxc4 {[%emt 0:00:12]} exf4 {[%emt 0:00:10]} 18. Rxf4 {[%emt 0:09:02]} Bd6 {[%emt 0:08:28]} 19. Rf5 {[%emt 0:03:30]} Be5 {[%emt 0:05:11]} 20. Raf1 {[%emt 0:06:44]} Rd7 {[%emt 0:07:02]} 21. Rg5 {[%emt 0:05:39]} h6 {[%emt 0:05:25]} 22. Rgf5 {[%emt 0:02:51]} Bxc3 {[%emt 0:01:28]} 23. bxc3 {[%emt 0:03:22]} Nxe4 {[%emt 0:00:55]} 24. R5f3 {[%emt 0:04:03]} a6 {[%emt 0:02:52]} 25. a5 {[%emt 0:02:34]} Rde7 {[%emt 0:04:57]} 26. Bb6 {[%emt 0:10:20]} Nd2 {[%emt 0:01:20]} 27. Bxc7 {[%emt 0:03:21]} Nxc4 {[%emt 0:00:08]} 28. Bf4 {[%emt 0:03:04]} Nxa5 {[%emt 0:00:49]} 29. Bd6 {[%emt 0:00:55]} Rd7 {[%emt 0:00:20]} 30. Bc5 {[%emt 0:01:11]} Nc4 {[%emt 0:02:53]} 31. Rf4 {[%emt 0:00:59]} b5 {[%emt 0:00:16]} 32. Ra1 {[%emt 0:00:37]} a5 {[%emt 0:00:18]} 33. Bd4 {[%emt 0:00:48]} Re2 {[%emt 0:01:51]} 34. Ra2 {[%emt 0:01:00]} Rde7 {[%emt 0:00:23]} 35. Rg4 {[%emt 0:01:01]} f5 {[%emt 0:02:18]} 36. Rg6 {[%emt 0:00:36]} R2e6 {[%emt 0:00:25]} 37. Rg3 {[%emt 0:00:21]} Re1+ {[%emt 0:00:30]} 38. Kh2 {[%emt 0:00:09]} g5 {[%emt 0:00:25]} 39. Rf3 {[%emt 0:01:13]} f4 {[%emt 0:00:10]} 40. h4 {[%emt 0:00:00]} Nd2 {[%emt 0:00:26]} 41. Rd3 {[%emt 0:03:44]} Nf1+ {[%emt 0:01:05]} 42. Kh3 {[%emt 0:00:19]} h5 {[%emt 0:00:57]} 43. g4 {[%emt 0:02:01]} fxg3 {[%emt 0:01:36]} 44. hxg5 {[%emt 0:01:04]} R7e2 {[%emt 0:03:30]} 45. Bg1 {[%emt 0:02:46]} a4 {[%emt 0:01:38]} 46. Rf3 {[%emt 0:01:09]} Kg7 {[%emt 0:03:35]} 47. c4 {[%emt 0:00:39]} Rb1 {[%emt 0:07:53]} 48. Raa3 {[%emt 0:02:20]} Rd1 {[%emt 0:13:32]} 49. cxb5 {[%emt 0:01:20]} cxb5 {[%emt 0:00:39]} 50. Rac3 {[%emt 0:00:18]} Re7 {[%emt 0:01:45]} 51. Rc6 {[%emt 0:04:39]} Rf7 {[%emt 0:01:52]} 52. Rcf6 {[%emt 0:01:00]} Rxf6 {[%emt 0:00:24]} 53. gxf6+ {[%emt 0:00:44]} Kf7 {[%emt 0:00:06]} 54. Kg2 {[%emt 0:00:31]} Nd2 {[%emt 0:00:50]} 55. Rd3 {[%emt 0:00:40]} h4 {[%emt 0:00:29]} 56. Bd4 {[%emt 0:02:20]} b4 {[%emt 0:00:24]} 57. Re3 {[%emt 0:01:43]} Nc4 {[%emt 0:02:37]} 58. Re7+ {[%emt 0:00:44]} Kf8 {[%emt 0:00:10]} 59. Bc5 {[%emt 0:01:12]} Rd2+ {[%emt 0:00:29]} 60. Kh3 {[%emt 0:02:32]} Nd6 {[%emt 0:01:32]} 61. Rd7 {[%emt 0:01:45]} g2 {[%emt 0:00:29]} 1/2-1/2

[Event "EYCC 2017"]
[Site "Mamaia"]
[Date "2017.09.05"]
[Round "1"]
[White "Shuqja, Klean"]
[Black "Stepanyan, Eva"]
[Result "1/2-1/2"]
[ECO "C77"]
[WhiteElo "1506"]
[BlackElo "1927"]
[Annotator "NA RC"]
[PlyCount "106"]
[EventDate "2017.??.??"]
[EventType "swiss"]
[EventCountry "ROU"]
[SourceTitle "playchess.com"]
[Source "ChessBase"]
[SourceQuality "1"]
[TimeControl "40/5400+30:1800+30"]

1. e4 {[%emt 0:00:00]} e5 {[%emt 0:00:07]} 2. Nf3 {[%emt 0:00:00]} Nc6 {[%emt 0:00:04]} 3. Bb5 {[%emt 0:00:00]} a6 {[%emt 0:00:25]} 4. Ba4 {[%emt 0:00:00]} Nf6 {[%emt 0:00:13]} 5. d3 {[%emt 0:00:03]} d6 {[%emt 0:01:14]} 6. O-O {[%emt 0:00:26]} b5 {[%emt 0:02:11]} 7. Bb3 {[%emt 0:00:06]} Be7 {[%emt 0:00:29]} 8. a4 {[%emt 0:06:28]} Rb8 {[%emt 0:03:09]} 9. c3 {[%emt 0:07:03]} O-O {[%emt 0:01:26]} 10. Re1 {[%emt 0:02:09]} h6 {[%emt 0:05:11]} 11. Nbd2 {[%emt 0:05:27]} b4 {[%emt 0:10:17]} 12. h3 {[%emt 0:08:31]} Na5 {[%emt 0:04:29]} 13. Bc2 {[%emt 0:17:37]} c5 {[%emt 0:03:11]} 14. c4 {[%emt 0:03:26]} Nh7 {[%emt 0:06:40]} 15. b3 {[%emt 0:08:20]} f5 {[%emt 0:03:48]} 16. exf5 {[%emt 0:04:25]} Bxf5 {[%emt 0:00:48]} 17. Ne4 {[%emt 0:08:19]} Nc6 {[%emt 0:02:30]} 18. Ng3 {[%emt 0:07:31]} Bg6 {[%emt 0:01:58]} 19. Be3 {[%emt 0:04:25]} a5 {[%emt 0:07:15]} 20. Qd2 {[%emt 0:03:31]} Nd4 {[%emt 0:06:04]} 21. Bd1 {[%emt 0:04:47]} Bf6 {[%emt 0:06:31]} 22. Bxd4 {[%emt 0:01:57]} cxd4 {[%emt 0:00:50]} 23. Ne4 {[%emt 0:01:34]} Bxe4 {[%emt 0:08:21]} 24. Rxe4 {[%emt 0:00:38]} Rc8 {[%emt 0:02:53]} 25. Re1 {[%emt 0:01:30]} Re8 {[%emt 0:04:04]} 26. Nh2 {[%emt 0:02:14]} Ng5 {[%emt 0:01:48]} 27. Bg4 {[%emt 0:01:28]} Rc7 {[%emt 0:01:30]} 28. Bf3 {[%emt 0:01:14]} Nxf3+ {[%emt 0:01:03]} 29. Nxf3 {[%emt 0:00:01]} d5 {[%emt 0:01:01]} 30. Qc2 {[%emt 0:01:05]} e4 {[%emt 0:02:40]} 31. Nh2 {[%emt 0:00:24]} exd3 {[%emt 0:01:09]} 32. Qxd3 {[%emt 0:00:18]} dxc4 {[%emt 0:00:21]} 33. bxc4 {[%emt 0:00:31]} Rxe1+ {[%emt 0:01:52]} 34. Rxe1 {[%emt 0:00:02]} Qd7 {[%emt 0:01:01]} 35. Ng4 {[%emt 0:00:48]} Bg5 {[%emt 0:05:57]} 36. Re4 {[%emt 0:01:05]} Qxa4 {[%emt 0:01:13]} 37. Qxd4 {[%emt 0:00:25]} Qd7 {[%emt 0:00:43]} 38. Qe5 {[%emt 0:00:35]} b3 {[%emt 0:01:54]} 39. f4 {[%emt 0:00:31]} Be7 {[%emt 0:01:09]} 40. Qb2 {[%emt 0:00:00]} Qd1+ {[%emt 0:00:51]} 41. Kh2 {[%emt 0:04:00]} a4 {[%emt 0:07:17]} 42. Qe5 {[%emt 0:21:03]} Qd6 {[%emt 0:02:04]} 43. Qb5 {[%emt 0:06:40]} Qd7 {[%emt 0:03:21]} 44. Qh5 {[%emt 0:00:39]} Qc6 {[%emt 0:03:47]} 45. Qf5 {[%emt 0:00:38]} b2 {[%emt 0:01:21]} 46. Re6 {[%emt 0:00:30]} Qc5 {[%emt 0:02:57]} 47. Nxh6+ {[%emt 0:00:32]} Kh8 {[%emt 0:02:42]} 48. Nf7+ {[%emt 0:00:24]} Kg8 {[%emt 0:00:09]} 49. Nh6+ {[%emt 0:00:10]} Kh8 {[%emt 0:02:21]} 50. Nf7+ {[%emt 0:00:22]} Kg8 {[%emt 0:00:09]} 51. Nh6+ {[%emt 0:00:06]} Kh8 {[%emt 0:00:06]} 52. Nf7+ {[%emt 0:00:21]} Kg8 {[%emt 0:00:05]} 53. Nh6+ {[%emt 0:00:21]} Kh8 {[%emt 0:00:05]} 1/2-1/2

[Event "EYCC 2017"]
[Site "Mamaia"]
[Date "2017.09.05"]
[Round "1"]
[White "Stastna, Martina"]
[Black "Ziegenfuss, Antonia"]
[Result "0-1"]
[ECO "B40"]
[WhiteElo "1482"]
[BlackElo "1909"]
[Annotator "NA RC"]
[PlyCount "104"]
[EventDate "2017.??.??"]
[EventType "swiss"]
[EventCountry "ROU"]
[SourceTitle "playchess.com"]
[Source "ChessBase"]
[SourceQuality "1"]
[TimeControl "40/5400+30:1800+30"]

1. e4 {[%emt 0:00:00]} c5 {[%emt 0:00:07]} 2. Nf3 {[%emt 0:00:10]} e6 {[%emt 0:00:14]} 3. c3 {[%emt 0:00:42]} Nf6 {[%emt 0:00:12]} 4. e5 {[%emt 0:00:27]} Nd5 {[%emt 0:00:08]} 5. d4 {[%emt 0:00:21]} cxd4 {[%emt 0:00:07]} 6. cxd4 {[%emt 0:00:10]} b6 {[%emt 0:00:16]} 7. Nc3 {[%emt 0:00:30]} Nxc3 {[%emt 0:00:25]} 8. bxc3 {[%emt 0:00:10]} Qc7 {[%emt 0:00:15]} 9. c4 {[%emt 0:02:03]} Ba6 {[%emt 0:07:47]} 10. Qb3 {[%emt 0:06:02]} Nc6 {[%emt 0:10:12]} 11. Bd2 {[%emt 0:06:22]} Bb7 {[%emt 0:14:54]} 12. Rc1 {[%emt 0:05:54]} Be7 {[%emt 0:09:18]} 13. Bd3 {[%emt 0:02:53]} O-O {[%emt 0:01:31]} 14. O-O {[%emt 0:02:52]} d6 {[%emt 0:05:44]} 15. exd6 {[%emt 0:02:28]} Bxd6 {[%emt 0:01:41]} 16. Bb1 {[%emt 0:03:55]} Rad8 {[%emt 0:07:52]} 17. h3 {[%emt 0:03:21]} Nxd4 {[%emt 0:03:48]} 18. Nxd4 {[%emt 0:03:36]} Bh2+ {[%emt 0:00:06]} 19. Kh1 {[%emt 0:00:19]} Rxd4 {[%emt 0:00:13]} 20. Be3 {[%emt 0:02:01]} Rh4 {[%emt 0:05:07]} 21. Bg5 {[%emt 0:06:16]} Rh5 {[%emt 0:04:20]} 22. Bd2 {[%emt 0:21:32]} Bf4 {[%emt 0:04:06]} 23. Rcd1 {[%emt 0:01:26]} Qe5 {[%emt 0:09:56]} 24. Bxf4 {[%emt 0:05:03]} Qxf4 {[%emt 0:00:05]} 25. Rd3 {[%emt 0:01:31]} Ba6 {[%emt 0:03:27]} 26. Rc3 {[%emt 0:02:14]} Rc5 {[%emt 0:00:38]} 27. Bd3 {[%emt 0:02:15]} Rfc8 {[%emt 0:00:30]} 28. Qa4 {[%emt 0:04:44]} Bxc4 {[%emt 0:03:13]} 29. Rfc1 {[%emt 0:06:01]} b5 {[%emt 0:00:52]} 30. Qxa7 {[%emt 0:00:40]} R5c7 {[%emt 0:00:13]} 31. Qa5 {[%emt 0:01:11]} Qxf2 {[%emt 0:02:04]} 32. Bxc4 {[%emt 0:03:25]} bxc4 {[%emt 0:00:08]} 33. Rb1 {[%emt 0:01:18]} Ra7 {[%emt 0:02:15]} 34. Rxc4 {[%emt 0:01:18]} Rf8 {[%emt 0:01:26]} 35. Qg5 {[%emt 0:01:23]} Qxa2 {[%emt 0:00:54]} 36. Rbc1 {[%emt 0:00:23]} h6 {[%emt 0:00:52]} 37. Qe5 {[%emt 0:00:22]} Ra5 {[%emt 0:00:50]} 38. Qg3 {[%emt 0:00:15]} Rg5 {[%emt 0:01:02]} 39. Qf3 {[%emt 0:00:32]} f5 {[%emt 0:02:32]} 40. R4c2 {[%emt 0:00:00]} Qa4 {[%emt 0:00:36]} 41. Re2 {[%emt 0:00:58]} Re8 {[%emt 0:02:36]} 42. Rce1 {[%emt 0:00:22]} Qd7 {[%emt 0:02:10]} 43. Re5 {[%emt 0:00:38]} Rg6 {[%emt 0:01:50]} 44. Qe3 {[%emt 0:01:00]} Rf6 {[%emt 0:00:49]} 45. g3 {[%emt 0:00:47]} Qf7 {[%emt 0:00:49]} 46. Rf1 {[%emt 0:01:32]} g5 {[%emt 0:01:24]} 47. Re1 {[%emt 0:01:33]} Kg7 {[%emt 0:01:59]} 48. Kh2 {[%emt 0:01:05]} f4 {[%emt 0:03:13]} 49. gxf4 {[%emt 0:02:36]} Rxf4 {[%emt 0:00:09]} 50. Rxe6 {[%emt 0:07:57]} Rxe6 {[%emt 0:00:19]} 51. Qxe6 {[%emt 0:00:10]} Rf2+ {[%emt 0:00:10]} 52. Kg1 {[%emt 0:00:10]} Rf1+ {[%emt 0:00:05]} 0-1

[Event "EYCC 2017"]
[Site "Mamaia"]
[Date "2017.09.05"]
[Round "1"]
[White "Zdravkovic, Filip"]
[Black "Pingin, Artem"]
[Result "0-1"]
[ECO "B32"]
[WhiteElo "1469"]
[BlackElo "1890"]
[Annotator "NA RC"]
[PlyCount "67"]
[EventDate "2017.??.??"]
[EventType "swiss"]
[EventCountry "ROU"]
[SourceTitle "playchess.com"]
[Source "ChessBase"]
[SourceQuality "1"]
[TimeControl "40/5400+30:1800+30"]

1. e4 {[%emt 0:00:00]} c5 {[%emt 0:00:31]} 2. Nf3 {[%emt 0:00:47]} Nc6 {[%emt 0:01:14]} 3. d4 {[%emt 0:01:19]} cxd4 {[%emt 0:00:06]} 4. Nxd4 {[%emt 0:00:32]} e5 {[%emt 0:00:28]} 5. Nb5 {[%emt 0:02:32]} d6 {[%emt 0:00:19]} 6. N1c3 {[%emt 0:03:31]} a6 {[%emt 0:01:17]} 7. Na3 {[%emt 0:02:59]} b5 {[%emt 0:03:09]} 8. Nd5 {[%emt 0:02:05]} Nf6 {[%emt 0:00:35]} 9. Bg5 {[%emt 0:02:06]} Qa5+ {[%emt 0:01:24]} 10. Bd2 {[%emt 0:04:14]} Qd8 {[%emt 0:00:22]} 11. Bd3 {[%emt 0:03:19]} Be6 {[%emt 0:07:09]} 12. Bg5 {[%emt 0:05:03]} Be7 {[%emt 0:07:50]} 13. Bxf6 {[%emt 0:10:19]} Bxf6 {[%emt 0:03:27]} 14. c3 {[%emt 0:03:38]} Bg5 {[%emt 0:04:11]} 15. Nc2 {[%emt 0:03:23]} O-O {[%emt 0:01:14]} 16. Nde3 {[%emt 0:00:40]} g6 {[%emt 0:05:19]} 17. O-O {[%emt 0:00:59]} Kh8 {[%emt 0:06:31]} 18. Qe2 {[%emt 0:01:02]} f5 {[%emt 0:12:38]} 19. exf5 {[%emt 0:04:06]} gxf5 {[%emt 0:00:11]} 20. Qh5 {[%emt 0:01:35]} e4 {[%emt 0:01:04]} 21. Be2 {[%emt 0:01:38]} f4 {[%emt 0:01:57]} 22. Bg4 {[%emt 0:03:04]} Bf7 {[%emt 0:02:30]} 23. Qh3 {[%emt 0:00:42]} fxe3 24. f4 {[%emt 0:03:02]} exf3 {[%emt 0:01:49]} 25. Bxf3 {[%emt 0:01:52]} d5 {[%emt 0:04:28]} 26. Rad1 {[%emt 0:00:52]} Ne5 {[%emt 0:01:47]} 27. Be2 {[%emt 0:01:35]} Bg6 {[%emt 0:04:52]} 28. Rxf8+ {[%emt 0:01:21]} Qxf8 {[%emt 0:01:04]} 29. Rf1 {[%emt 0:00:14]} Qe7 {[%emt 0:01:40]} 30. Nb4 {[%emt 0:02:08]} Be4 {[%emt 0:01:24]} 31. Qh5 {[%emt 0:05:31]} a5 {[%emt 0:04:13]} 32. Nd3 {[%emt 0:02:41]} Nxd3 {[%emt 0:01:01]} 33. Rf7 {[%emt 0:00:44]} Bg6 {[%emt 0:02:35]} 34. Rf5 0-1

[Event "EYCC 2017"]
[Site "Mamaia"]
[Date "2017.09.05"]
[Round "1"]
[White "Sedef, Elif Tuana"]
[Black "Kirchei, Viktoriia"]
[Result "1-0"]
[ECO "C11"]
[WhiteElo "1467"]
[BlackElo "1904"]
[Annotator "NA RC"]
[PlyCount "99"]
[EventDate "2017.??.??"]
[EventType "swiss"]
[EventCountry "ROU"]
[SourceTitle "playchess.com"]
[Source "ChessBase"]
[SourceQuality "1"]
[TimeControl "40/5400+30:1800+30"]

1. e4 {[%emt 0:00:00]} e6 {[%emt 0:00:05]} 2. d4 {[%emt 0:00:00]} d5 {[%emt 0:00:05]} 3. Nc3 {[%emt 0:00:00]} Nf6 {[%emt 0:00:17]} 4. e5 {[%emt 0:01:01]} Nfd7 {[%emt 0:00:18]} 5. f4 {[%emt 0:02:35]} c5 {[%emt 0:02:38]} 6. Nf3 {[%emt 0:00:30]} Nc6 {[%emt 0:00:54]} 7. Be3 {[%emt 0:01:59]} cxd4 {[%emt 0:04:22]} 8. Nxd4 {[%emt 0:04:02]} a6 {[%emt 0:14:02]} 9. Nce2 {[%emt 0:06:14]} Qc7 {[%emt 0:04:25]} 10. c3 {[%emt 0:04:00]} g6 {[%emt 0:04:44]} 11. Ng3 {[%emt 0:04:37]} h5 {[%emt 0:09:11]} 12. Bd3 {[%emt 0:04:51]} h4 {[%emt 0:03:31]} 13. Nf1 {[%emt 0:04:31]} Nc5 {[%emt 0:09:26]} 14. Bc2 {[%emt 0:02:51]} Bg7 {[%emt 0:06:31]} 15. Nf3 {[%emt 0:14:15]} Nd7 {[%emt 0:01:02]} 16. Bf2 {[%emt 0:05:02]} Qd8 {[%emt 0:02:45]} 17. Bxh4 {[%emt 0:08:26]} Rxh4 {[%emt 0:00:15]} 18. Nxh4 {[%emt 0:00:10]} Qxh4+ {[%emt 0:00:03]} 19. g3 {[%emt 0:00:15]} Qh3 {[%emt 0:01:05]} 20. Ne3 {[%emt 0:01:19]} Nb6 {[%emt 0:03:52]} 21. Qg4 {[%emt 0:02:49]} Qxg4 22. Nxg4 {[%emt 0:00:15]} Bd7 {[%emt 0:03:29]} 23. Ne3 {[%emt 0:03:32]} Ke7 {[%emt 0:02:46]} 24. Rd1 {[%emt 0:04:21]} Na7 {[%emt 0:02:18]} 25. h4 {[%emt 0:03:23]} Bc6 {[%emt 0:00:18]} 26. Rh2 {[%emt 0:01:20]} Rh8 {[%emt 0:00:12]} 27. Bb3 {[%emt 0:02:00]} Na4 {[%emt 0:01:53]} 28. Bxa4 {[%emt 0:01:58]} Bxa4 {[%emt 0:01:23]} 29. b3 {[%emt 0:00:29]} Bc6 {[%emt 0:00:42]} 30. c4 {[%emt 0:00:43]} Rd8 {[%emt 0:00:37]} 31. Rhd2 {[%emt 0:01:32]} Bf8 {[%emt 0:06:24]} 32. Ke2 {[%emt 0:03:50]} Rd7 {[%emt 0:06:46]} 33. cxd5 {[%emt 0:00:19]} exd5 {[%emt 0:00:10]} 34. Nxd5+ {[%emt 0:00:16]} Bxd5 {[%emt 0:00:07]} 35. Rxd5 {[%emt 0:00:13]} Rxd5 {[%emt 0:00:05]} 36. Rxd5 {[%emt 0:00:05]} Nc6 {[%emt 0:00:59]} 37. Ke3 {[%emt 0:01:19]} Ke6 {[%emt 0:00:38]} 38. Ke4 {[%emt 0:01:15]} Nb4 {[%emt 0:05:23]} 39. Rd2 {[%emt 0:01:49]} Be7 {[%emt 0:01:07]} 40. h5 {[%emt 0:00:00]} Bf8 {[%emt 0:01:42]} 41. g4 {[%emt 0:10:33]} gxh5 {[%emt 0:01:06]} 42. f5+ {[%emt 0:01:33]} Ke7 {[%emt 0:00:08]} 43. gxh5 {[%emt 0:00:40]} Nc6 {[%emt 0:04:47]} 44. f6+ {[%emt 0:09:18]} Ke8 {[%emt 0:01:45]} 45. Rg2 {[%emt 0:01:54]} Kd7 {[%emt 0:06:50]} 46. Rg7 {[%emt 0:04:08]} Bxg7 {[%emt 0:04:51]} 47. fxg7 {[%emt 0:00:11]} Ne7 {[%emt 0:00:03]} 48. h6 {[%emt 0:00:06]} f5+ {[%emt 0:01:07]} 49. exf6 {[%emt 0:00:07]} Ng8 {[%emt 0:00:13]} 50. f7 {[%emt 0:00:18]} 1-0

[Event "EYCC 2017"]
[Site "Mamaia"]
[Date "2017.09.05"]
[Round "1"]
[White "Silva, Daniel Frederico V"]
[Black "Mekhane, Adam"]
[Result "0-1"]
[ECO "C55"]
[WhiteElo "1416"]
[BlackElo "1967"]
[Annotator "NA RC"]
[PlyCount "80"]
[EventDate "2017.??.??"]
[EventType "swiss"]
[EventCountry "ROU"]
[SourceTitle "playchess.com"]
[Source "ChessBase"]
[SourceQuality "1"]
[TimeControl "40/5400+30:1800+30"]

1. e4 {[%emt 0:00:00]} e5 {[%emt 0:00:41]} 2. Nf3 {[%emt 0:00:21]} Nc6 {[%emt 0:00:07]} 3. Bc4 {[%emt 0:00:56]} Nf6 {[%emt 0:00:34]} 4. d3 {[%emt 0:02:00]} Be7 {[%emt 0:02:03]} 5. Be3 {[%emt 0:03:20]} O-O {[%emt 0:04:39]} 6. O-O {[%emt 0:01:46]} d6 {[%emt 0:02:11]} 7. Nbd2 {[%emt 0:03:08]} Na5 {[%emt 0:06:06]} 8. Bb3 {[%emt 0:02:25]} Nxb3 {[%emt 0:03:11]} 9. axb3 {[%emt 0:00:33]} a6 {[%emt 0:01:29]} 10. Qe2 {[%emt 0:07:02]} Ng4 {[%emt 0:05:59]} 11. h3 {[%emt 0:03:57]} Nxe3 {[%emt 0:00:24]} 12. fxe3 {[%emt 0:00:36]} f5 {[%emt 0:05:50]} 13. exf5 {[%emt 0:04:34]} Bxf5 {[%emt 0:00:39]} 14. Rad1 {[%emt 0:04:25]} Qe8 {[%emt 0:02:30]} 15. e4 {[%emt 0:05:23]} Be6 {[%emt 0:04:13]} 16. d4 {[%emt 0:06:23]} Qg6 {[%emt 0:14:40]} 17. Kh2 {[%emt 0:06:06]} Qh5 {[%emt 0:05:37]} 18. d5 {[%emt 0:05:15]} Bd7 {[%emt 0:01:10]} 19. Rf2 {[%emt 0:05:15]} Rf6 {[%emt 0:02:16]} 20. Rdf1 {[%emt 0:03:49]} Rh6 {[%emt 0:05:42]} 21. Ng1 {[%emt 0:02:47]} Bg4 22. Qd3 {[%emt 0:02:50]} Bg5 {[%emt 0:07:33]} 23. Nc4 {[%emt 0:06:28]} Bf4+ {[%emt 0:03:56]} 24. Kh1 {[%emt 0:01:51]} Qg5 {[%emt 0:00:29]} 25. Re1 {[%emt 0:05:20]} b5 {[%emt 0:03:13]} 26. Na5 {[%emt 0:02:14]} Qh4 {[%emt 0:02:03]} 27. Ref1 {[%emt 0:01:13]} Qg5 {[%emt 0:02:39]} 28. Re1 {[%emt 0:00:37]} Bh5 {[%emt 0:02:22]} 29. Rff1 {[%emt 0:05:26]} Qh4 {[%emt 0:03:14]} 30. Ra1 {[%emt 0:04:19]} g5 {[%emt 0:03:09]} 31. Nc6 {[%emt 0:02:53]} g4 {[%emt 0:00:29]} 32. c4 {[%emt 0:01:25]} bxc4 {[%emt 0:01:25]} 33. bxc4 {[%emt 0:00:10]} gxh3 {[%emt 0:00:58]} 34. Nxh3 {[%emt 0:00:25]} Bg4 {[%emt 0:01:26]} 35. Ra3 {[%emt 0:00:24]} Qh5 {[%emt 0:02:00]} 36. Rfa1 {[%emt 0:00:52]} Be2 {[%emt 0:00:06]} 37. Qb3 {[%emt 0:00:27]} Bg4 {[%emt 0:01:52]} 38. Qc3 {[%emt 0:00:37]} Bxh3 {[%emt 0:01:09]} 39. gxh3 {[%emt 0:00:13]} Qe2 {[%emt 0:00:01]} 40. Qf3 {[%emt 0:00:00]} Qh2# {[%emt 0:00:08] Qc3 Qe2} 0-1

[Event "EYCC 2017"]
[Site "Mamaia"]
[Date "2017.09.05"]
[Round "1"]
[White "Palczert, Hajnalka"]
[Black "Zeliantsova, Kseniya"]
[Result "0-1"]
[ECO "E68"]
[WhiteElo "1372"]
[BlackElo "1881"]
[Annotator "NA RC"]
[PlyCount "100"]
[EventDate "2017.??.??"]
[EventType "swiss"]
[EventCountry "ROU"]
[SourceTitle "playchess.com"]
[Source "ChessBase"]
[SourceQuality "1"]
[TimeControl "40/5400+30:1800+30"]

1. Nf3 {[%emt 0:00:00]} Nf6 {[%emt 0:00:08]} 2. g3 {[%emt 0:00:53]} g6 {[%emt 0:00:06]} 3. Bg2 {[%emt 0:01:14]} Bg7 {[%emt 0:00:09]} 4. O-O {[%emt 0:01:13]} O-O {[%emt 0:01:02]} 5. d4 {[%emt 0:01:47]} d6 {[%emt 0:00:06]} 6. c4 {[%emt 0:01:57]} Nbd7 {[%emt 0:00:25]} 7. Nc3 {[%emt 0:02:42]} e5 {[%emt 0:00:22]} 8. e4 {[%emt 0:03:47]} c6 {[%emt 0:03:13]} 9. d5 {[%emt 0:11:31]} Qe7 {[%emt 0:02:29]} 10. Re1 {[%emt 0:04:17]} Rd8 {[%emt 0:02:53]} 11. Re2 {[%emt 0:04:43]} Nf8 {[%emt 0:10:03]} 12. h3 {[%emt 0:05:25]} h6 {[%emt 0:10:18]} 13. Qb3 {[%emt 0:02:17]} g5 {[%emt 0:15:41]} 14. Bd2 {[%emt 0:04:40]} Ng6 {[%emt 0:01:18]} 15. Rd1 {[%emt 0:07:47]} g4 {[%emt 0:03:38]} 16. hxg4 {[%emt 0:03:03]} Bxg4 {[%emt 0:00:17]} 17. Re3 {[%emt 0:02:57]} Qd7 {[%emt 0:21:58]} 18. Qc2 {[%emt 0:04:25]} Bh3 {[%emt 0:04:20]} 19. Qd3 {[%emt 0:03:08]} Bxg2 {[%emt 0:03:10]} 20. Kxg2 {[%emt 0:02:19]} Qg4 {[%emt 0:00:22]} 21. Ree1 {[%emt 0:02:57]} Nh5 {[%emt 0:03:38]} 22. Qf1 {[%emt 0:01:35]} Nhf4+ {[%emt 0:04:18]} 23. Bxf4 {[%emt 0:02:19]} Nxf4+ {[%emt 0:00:02]} 24. Kg1 {[%emt 0:01:34]} Qxf3 {[%emt 0:00:11]} 25. gxf4 {[%emt 0:00:47]} Qxf4 {[%emt 0:03:18]} 26. Re3 {[%emt 0:02:29]} Kh8 {[%emt 0:00:35]} 27. Rg3 {[%emt 0:01:55]} Bf6 {[%emt 0:02:26]} 28. Rdd3 {[%emt 0:01:09]} Rg8 {[%emt 0:00:17]} 29. Kh1 {[%emt 0:01:57]} Rxg3 {[%emt 0:02:39]} 30. Rxg3 {[%emt 0:00:38]} cxd5 {[%emt 0:00:40]} 31. cxd5 {[%emt 0:00:52]} b5 {[%emt 0:01:47]} 32. Qg2 {[%emt 0:01:55]} b4 {[%emt 0:01:13]} 33. Ne2 {[%emt 0:03:25]} Qd2 {[%emt 0:00:05]} 34. Qf3 {[%emt 0:00:23]} Bg5 {[%emt 0:00:52]} 35. Ng1 {[%emt 0:01:21]} Bf4 {[%emt 0:02:41]} 36. Rg2 {[%emt 0:00:49]} Qc1 {[%emt 0:00:49]} 37. Qg4 {[%emt 0:02:32]} Bg5 {[%emt 0:00:05]} 38. Qd7 {[%emt 0:00:42]} Qf4 {[%emt 0:01:17]} 39. Qxd6 {[%emt 0:01:15]} Qh4+ {[%emt 0:00:22]} 40. Rh2 {[%emt 0:00:00]} Qxe4+ {[%emt 0:00:05]} 41. f3 {[%emt 0:01:27]} Qf4 {[%emt 0:00:32]} 42. Qc6 {[%emt 0:02:00]} Rd8 {[%emt 0:01:48]} 43. Qc5 {[%emt 0:05:09]} Qd4 {[%emt 0:03:06]} 44. Rc2 {[%emt 0:01:42]} Kg8 {[%emt 0:16:09]} 45. Rc4 {[%emt 0:03:18]} Qxb2 {[%emt 0:00:29]} 46. Rxb4 {[%emt 0:01:12]} Qxa2 {[%emt 0:00:43]} 47. Rb5 {[%emt 0:02:01]} Bf4 {[%emt 0:00:23]} 48. Ne2 {[%emt 0:02:05]} Qxe2 {[%emt 0:00:06]} 49. Qg1+ {[%emt 0:00:23]} Kh8 {[%emt 0:00:35]} 50. Rb7 {[%emt 0:01:02]} Rg8 {[%emt 0:00:40]} 0-1